bitfinex/quotes_ETHUSD_20250625
["timestamp","ask_amount","ask_price","bid_price","bid_amount"]
[1750871158887,10.785,2408.8,2408.7,4.15161705]
[1750871159095,12.568,2408.8,2408.7,4.15161705]
[1750871160101,10.785,2408.8,2408.7,4.15161705]
[1750871160425,1.783,2409.2,2409.1,4.90282773]
[1750871160720,7.6479,2409.6,2409.3,4.15058315]
[1750871160925,3.62679,2409.6,2409.5,4.15023863]
[1750871161315,13.62679,2409.6,2409.5,4.15023863]
[1750871161631,13.62679,2409.6,2409.3,4.15055865]
[1750871162000,13.62679,2409.6,2409.1,0.7519]
[1750871162208,13.62679,2409.6,2409.5,4.15023863]
[1750871163016,3.62679,2409.6,2409.5,4.15023863]
[1750871163198,1.783,2409.6,2409.5,4.15023863]
[1750871163589,12.573,2409.8,2409.7,4.14989417]
[1750871164011,0.7914,2410.3,2410.1,4.14917201]
[1750871164222,1.783,2410.2,2410.1,4.14917201]
[1750871164419,12.72294,2410.2,2409.9,4.14946587]
[1750871164599,12.72294,2410.2,2409.6,0.7836]
[1750871164799,12.72294,2410.2,2410.0,4.14927578]
[1750871165026,12.72294,2410.2,2409.9,4.14950416]
[1750871165407,12.72294,2410.2,2410.0,4.14936202]
[1750871165738,2.033934,2410.1,2409.9,4.14947848]
[1750871166107,2.033934,2410.1,2408.9,4.15125379]
[1750871166108,2.033934,2410.1,2409.5,4.15018278]
[1750871166425,6.829,2410.0,2409.6,4.14990125]
[1750871166745,6.829,2410.0,2409.7,4.14988152]
[1750871166901,6.829,2410.0,2409.5,0.55]
[1750871167100,8.861934,2410.1,2409.9,4.14954977]
[1750871167302,2.6691934,2410.0,2409.8,4.149636]
[1750871167827,2.6691934,2410.0,2409.7,4.14980239]
[1750871168032,2.6691934,2410.0,2409.8,4.14970061]
[1750871168227,0.8861934,2410.0,2409.9,4.14954977]
[1750871168530,1.783,2409.9,2409.7,4.14981282]
[1750871168730,2.93631274,2409.9,2409.8,4.14972196]
[1750871169095,2.93631274,2409.9,2409.7,4.14980754]
[1750871169725,2.93631274,2409.9,2409.6,4.15002015]
[1750871169726,2.93631274,2409.9,2409.6,4.14994325]
[1750871170228,2.93631274,2409.9,2409.6,4.1500664]
[1750871170410,2.93631274,2409.9,2409.8,4.14972196]
[1750871170606,2.93631274,2409.9,2409.6,4.1500664]
[1750871170806,0.31435127,2409.8,2409.6,4.15003414]
[1750871171329,0.31435127,2409.8,2409.7,4.14989417]
[1750871172433,1.783,2409.9,2409.8,4.14972196]
[1750871173406,0.2072,2410.0,2409.9,4.14954977]
[1750871174630,0.2072,2410.0,2409.8,4.14963713]
[1750871176098,0.2072,2410.0,2409.9,4.14954977]
[1750871176724,0.2072,2410.0,2409.8,4.14963502]
[1750871177336,0.2072,2410.0,2409.9,4.14954977]
[1750871178227,0.2072,2410.0,2409.5,0.2072]
[1750871178433,0.2072,2410.0,2409.8,4.14971941]
[1750871179343,0.2072,2410.0,2409.9,4.14954977]
[1750871179739,11.785,2410.2,2410.1,4.14920542]
[1750871179922,13.93214,2410.2,2410.1,4.14920542]
[1750871180121,10.0,2410.2,2410.1,4.14920542]
[1750871180329,11.785,2410.2,2410.1,4.14920542]
[1750871180536,6.817,2410.3,2410.2,4.14890667]
[1750871180729,17.0242,2410.4,2410.3,4.14886113]
[1750871180951,11.9922,2410.4,2410.3,4.14886113]
[1750871181123,11.785,2410.4,2410.3,4.14886113]
[1750871181319,1.785,2410.4,2410.3,4.14886113]
[1750871182467,10.9922,2410.6,2410.3,0.7856]
[1750871182757,1.785,2410.5,2410.4,4.14859943]
[1750871182925,27.602,2410.6,2410.5,4.1485169]
[1750871183125,29.387,2410.6,2410.5,4.1485169]
[1750871183749,20.785,2410.6,2410.5,4.1485169]
[1750871183946,29.387,2410.6,2410.5,4.1485169]
[1750871184146,19.387,2410.6,2410.5,4.1485169]
[1750871184370,10.785,2410.6,2410.5,4.1485169]
[1750871184573,12.57,2410.6,2410.5,4.1485169]
[1750871184869,12.57,2410.6,2410.3,0.9928]
[1750871185028,12.57,2410.6,2410.4,4.14868901]
[1750871185359,12.57,2410.6,2410.5,4.1485169]
[1750871185569,12.57,2410.6,2410.4,4.14861924]
[1750871186131,12.57,2410.6,2410.2,4.14902569]
[1750871186464,12.7772,2410.6,2410.3,4.14884945]
[1750871187869,12.7772,2410.6,2410.4,4.14868454]
[1750871188060,6.816,2410.5,2410.4,4.14868454]
[1750871188251,6.816,2410.5,2410.3,4.1488087]
[1750871188448,10.9922,2410.6,2410.5,4.1485169]
[1750871188652,12.57,2410.6,2410.5,4.1485169]
[1750871188861,6.816,2410.9,2410.8,4.14800066]
[1750871189056,8.601,2410.9,2410.8,4.14800066]
[1750871189390,0.2072,2411.1,2410.7,4.35533806]
[1750871189391,1.785,2411.1,2410.9,0.7621]
[1750871189688,1.785,2411.1,2411.0,4.35485657]
[1750871191441,1.785,2411.1,2411.0,0.2072]
[1750871191862,1.785,2411.1,2411.0,4.35485657]
[1750871192384,0.2072,2411.4,2411.3,4.14714054]
[1750871192542,1.785,2411.4,2411.3,4.14714054]
[1750871193582,1.785,2411.4,2411.2,4.14725065]
[1750871194161,1.785,2411.4,2411.1,4.35459535]
[1750871195074,1.785,2411.4,2411.2,4.14729465]
[1750871196200,1.785,2411.4,2411.1,4.35461394]
[1750871196355,1.785,2411.4,2411.3,4.14714054]
[1750871196768,1.785,2411.4,2411.2,4.14718873]
[1750871197289,1.785,2411.4,2411.3,4.14714054]
[1750871197874,0.2072,2411.6,2411.4,4.14696856]
[1750871198076,11.6109,2411.8,2411.4,4.97966856]
[1750871198077,1.785,2411.5,2411.4,4.97966856]
[1750871198275,1.785,2411.5,2411.4,6.72526947]
[1750871198689,1.785,2411.5,2411.4,6.17526947]
[1750871199389,1.785,2411.5,2411.4,6.72526947]
[1750871201591,0.2072,2412.2,2411.9,4.14602447]
[1750871201592,1.784,2412.2,2411.9,4.14602447]
[1750871201798,1.784,2412.2,2412.1,5.5258651]
[1750871202104,24.26231928,2413.1,2412.1,5.5258651]
[1750871202105,0.2072,2412.8,2412.2,4.14553353]
[1750871202299,8.596,2412.8,2412.7,4.14473411]
[1750871202595,1.784,2412.8,2412.7,4.14473411]
[1750871202977,0.013835,2413.0,2412.9,4.14439056]
[1750871203148,1.797835,2413.0,2412.9,4.14439056]
[1750871203352,0.013835,2413.0,2412.9,4.69439056]
[1750871203546,0.013835,2413.0,2412.9,4.90159056]
[1750871203758,0.013835,2413.0,2412.9,4.35159056]
[1750871205862,0.013835,2413.0,2412.9,6.56101618]
[1750871206579,0.013835,2413.0,2412.9,13.37201618]
[1750871207150,0.013835,2413.0,2412.9,0.962]
[1750871207381,0.013835,2413.0,2412.9,0.2072]
[1750871207788,0.013835,2413.0,2412.7,4.14464706]
[1750871207991,0.013835,2413.0,2412.8,4.14455022]
[1750871208173,0.013835,2413.0,2412.9,4.14439056]
[1750871208354,0.013835,2413.0,2412.9,4.35159056]
[1750871208756,0.013835,2413.0,2412.9,6.57830464]
[1750871211181,0.013835,2413.0,2412.9,5.72869056]
[1750871211391,0.013835,2413.0,2412.9,1.0343]
[1750871211592,4.15805381,2413.0,2412.9,0.2072]
[1750871211796,4.15805381,2413.0,2412.7,0.2072]
[1750871211797,0.013835,2413.0,2412.7,0.2072]
[1750871212001,14.09826699,2412.9,2412.7,0.2072]
[1750871212203,14.09826699,2412.9,2412.8,4.14456233]
[1750871212968,14.09826699,2412.9,2412.7,0.2072]
[1750871215010,14.09826699,2412.9,2412.7,4.35192743]
[1750871215304,14.09826699,2412.9,2412.7,0.2072]
[1750871215508,0.8143,2412.6,2412.2,4.9435]
[1750871215803,12.31826699,2412.5,2412.2,4.14551215]
[1750871216003,12.31826699,2412.5,2412.2,4.35271215]
[1750871216400,12.31826699,2412.5,2412.2,0.2072]
[1750871216780,12.31826699,2412.5,2412.3,4.14531794]
[1750871217699,12.31826699,2412.5,2412.4,4.14524954]
[1750871218065,12.31826699,2412.5,2412.3,4.14525503]
[1750871218262,12.31826699,2412.5,2412.2,4.35270062]
[1750871218501,13.84826743,2412.5,2412.2,0.2072]
[1750871218702,14.05546743,2412.5,2412.1,4.35287344]
[1750871218999,14.05546743,2412.5,2412.0,4.14593403]
[1750871219000,1.78,2412.4,2412.0,4.14593403]
[1750871219167,1.9872,2412.4,2412.0,4.14593403]
[1750871219499,6.827,2412.3,2412.0,4.14593403]
[1750871220165,6.827,2412.3,2412.1,4.14575995]
[1750871220381,6.827,2412.3,2412.0,4.14583958]
[1750871221080,13.84826743,2412.5,2412.0,0.55]
[1750871221398,14.09826699,2412.5,2412.4,4.14524954]
[1750871221579,14.09826699,2412.5,2412.3,4.14534551]
[1750871221779,14.09826699,2412.5,2412.2,4.35268805]
[1750871222211,14.09826699,2412.5,2412.2,0.2072]
[1750871222411,14.09826699,2412.5,2412.3,4.14533821]
[1750871222712,14.09826699,2412.5,2412.4,4.14524954]
[1750871222918,14.09826699,2412.5,2412.3,4.14532781]
[1750871223314,14.09826699,2412.5,2412.2,4.35270433]
[1750871223626,14.09826699,2412.5,2412.3,4.14540611]
[1750871223923,14.09826699,2412.5,2412.2,4.35269586]
[1750871224709,4.09826699,2412.5,2412.4,4.14524954]
[1750871225204,4.09826699,2412.5,2412.3,4.14532614]
[1750871226237,4.09826699,2412.5,2412.2,4.35270991]
[1750871226595,4.09826699,2412.5,2412.2,4.35271546]
[1750871226822,4.09826699,2412.5,2411.7,1.68984604]
[1750871226823,0.8249,2412.3,2411.7,5.28617017]
[1750871227013,6.822,2412.2,2411.9,0.2072]
[1750871227214,6.822,2412.2,2411.9,4.35316976]
[1750871227391,12.31826699,2412.1,2411.6,0.7905]
[1750871227589,12.31826699,2412.1,2411.7,4.35364397]
[1750871227590,1.78,2412.0,2411.7,4.35364397]
[1750871227813,1.78,2412.0,2411.8,4.14618603]
[1750871228448,1.78,2412.0,2411.9,4.14610887]
[1750871228641,1.78,2412.1,2412.0,4.14593698]
[1750871229838,1.78,2412.1,2411.8,5.78501381]
[1750871230153,1.78,2412.1,2411.9,4.14610887]
[1750871230361,1.78,2412.1,2412.0,4.14593698]
[1750871230839,1.78,2412.1,2411.9,4.14603316]
[1750871231040,0.7889,2411.9,2411.2,0.754]
[1750871231254,7.6129,2411.9,2411.5,4.14677801]
[1750871231563,7.6129,2411.9,2411.6,4.14655367]
[1750871231754,7.6129,2411.9,2411.7,4.14643613]
[1750871231959,7.6129,2411.9,2411.8,4.14628078]
[1750871232263,12.31826699,2412.0,2411.7,4.14644848]
[1750871232264,16.826,2412.1,2412.0,4.14593698]
[1750871232562,1.78,2411.9,2411.7,4.14632501]
[1750871232729,2.5875,2411.9,2411.7,4.14632501]
[1750871233052,2.5875,2411.9,2411.6,4.14654802]
[1750871233554,2.5875,2411.9,2411.5,4.14671918]
[1750871234125,2.5875,2411.9,2411.7,4.14637383]
[1750871234549,2.5875,2411.9,2411.5,0.82936221]
[1750871234743,2.5875,2411.9,2411.5,4.97599057]
[1750871234948,2.5875,2411.9,2411.6,4.14658667]
[1750871235465,10.97543137,2411.8,2410.9,4.69769879]
[1750871235642,10.97543137,2411.8,2411.0,0.7949]
[1750871235643,6.829,2411.8,2411.0,0.7949]
[1750871235843,4.93984297,2411.7,2411.2,4.14721131]
[1750871236051,0.7933,2411.7,2411.1,4.14734259]
[1750871236246,0.7933,2411.7,2411.3,4.14712109]
[1750871237130,0.7933,2411.7,2411.5,4.14676612]
[1750871237329,0.7933,2411.7,2411.5,4.14665405]
[1750871237559,7.6223,2411.7,2411.6,4.14662464]
[1750871237764,9.4143,2411.7,2411.6,4.14662464]
[1750871240040,0.7933,2411.7,2411.6,4.14662464]
[1750871240243,16.83,2411.8,2411.7,4.1464527]
[1750871240555,18.622,2411.8,2411.7,4.1464527]
[1750871240769,18.622,2411.8,2411.6,0.55154421]
[1750871240962,0.7756,2411.7,2411.1,0.41473426]
[1750871241164,18.8292,2411.8,2411.6,4.14662464]
[1750871241334,18.8292,2411.8,2411.5,4.14667857]
[1750871242480,18.8292,2411.8,2411.6,4.14661112]
[1750871242644,18.8292,2411.8,2411.7,4.1464527]
[1750871243371,12.31826699,2412.4,2411.8,4.14628078]
[1750871243569,11.033,2412.2,2411.7,1.03652094]
[1750871243770,11.033,2412.2,2411.8,4.14617361]
[1750871243954,10.0,2412.0,2411.9,4.1461045]
[1750871244576,10.0,2412.0,2411.7,4.14630551]
[1750871244877,10.0,2412.0,2411.6,4.35370658]
[1750871245239,14.14594564,2412.0,2411.6,0.2072]
[1750871245446,1.0229,2411.8,2411.4,0.2072]
[1750871245646,1.0229,2411.8,2411.7,4.1464527]
[1750871245852,1.0229,2411.8,2411.6,4.14658421]
[1750871246060,1.0229,2411.8,2411.5,4.14670888]
[1750871246379,6.827,2411.9,2411.5,4.14679627]
[1750871246578,6.827,2411.9,2411.3,4.14703963]
[1750871246579,0.2072,2411.6,2411.4,4.14687641]
[1750871246769,1.9992,2411.6,2411.4,4.14687641]
[1750871247380,1.9992,2411.6,2411.5,4.14679659]
[1750871247743,10.0,2412.0,2411.7,4.14642816]
[1750871247947,8.8262,2411.9,2411.7,4.14642816]
[1750871248180,8.8262,2411.9,2411.6,4.14654781]
[1750871248374,8.8262,2411.9,2411.5,4.14679659]
[1750871248581,12.9723159,2411.9,2411.4,4.35407428]
[1750871248770,4.14648476,2411.7,2411.2,4.14724934]
[1750871249080,0.2072,2411.6,2411.2,4.35444934]
[1750871249382,0.4287,2411.5,2411.2,4.35444934]
[1750871249760,0.4287,2411.5,2411.2,0.2072]
[1750871250075,1.792,2411.4,2411.2,0.2072]
[1750871250260,1.792,2411.4,2411.2,4.86755339]
[1750871250677,1.792,2411.4,2411.3,4.14714054]
[1750871251778,0.2072,2411.6,2411.5,4.14679659]
[1750871251983,1.792,2411.6,2411.5,4.14679659]
[1750871252277,1.792,2411.7,2411.6,4.14662464]
[1750871252583,1.792,2411.7,2411.5,4.96231234]
[1750871252746,1.792,2411.7,2411.4,4.35409697]
[1750871253476,1.792,2411.7,2411.4,0.2072]
[1750871254113,1.792,2411.7,2411.4,4.35415671]
[1750871254289,2.2207,2411.7,2411.4,0.2072]
[1750871254459,2.2207,2411.7,2411.4,4.35414324]
[1750871255089,1.792,2411.7,2411.6,4.14662464]
[1750871255254,1.792,2411.7,2411.5,4.14671626]
[1750871255457,1.792,2411.7,2411.6,4.14662464]
[1750871255686,0.2072,2411.8,2411.6,4.14662464]
[1750871255878,1.792,2411.7,2411.5,4.14670881]
[1750871256675,1.792,2411.7,2411.4,1.1902142]
[1750871256994,1.792,2411.7,2411.4,0.2072]
[1750871257164,1.792,2411.7,2411.5,4.14677894]
[1750871257576,1.792,2411.7,2411.4,4.35405893]
[1750871257577,1.792,2411.7,2411.4,0.2072]
[1750871257868,0.2072,2411.6,2411.3,4.14705634]
[1750871258801,0.2072,2411.6,2411.2,1.53594797]
[1750871258988,4.14696856,2411.4,2410.8,0.7973]
[1750871259191,4.14723146,2411.3,2410.8,4.94522953]
[1750871259506,4.14696856,2411.4,2410.7,4.56289643]
[1750871259507,5.93937318,2411.2,2410.7,4.56289643]
[1750871259874,0.4287,2411.1,2410.7,0.41483398]
[1750871260074,0.4287,2411.1,2410.6,4.14820299]
[1750871260274,0.4287,2411.1,2410.7,4.14807665]
[1750871260474,0.4287,2411.1,2410.8,4.14797789]
[1750871260998,0.4287,2411.1,2410.9,4.14771767]
[1750871261506,0.4287,2411.1,2411.0,4.14765657]
[1750871261708,1.792,2411.2,2411.1,4.14748455]
[1750871262514,1.792,2411.2,2411.0,4.14757684]
[1750871262677,1.792,2411.2,2411.1,4.14748455]
[1750871262882,10.776,2411.7,2411.6,4.14662464]
[1750871263222,12.568,2411.7,2411.5,4.14669885]
[1750871263377,12.568,2411.7,2411.4,4.14688628]
[1750871263579,12.568,2411.7,2411.5,4.14678567]
[1750871264493,12.568,2411.7,2411.4,4.14684187]
[1750871265490,14.55027,2411.7,2410.9,0.8179]
[1750871265697,18.69681957,2411.7,2411.2,4.14730996]
[1750871265891,4.14679659,2411.5,2410.7,0.8179]
[1750871266108,15.5998328,2411.4,2410.8,4.14800066]
[1750871266289,14.14688854,2411.5,2411.0,4.14764211]
[1750871266622,4.14697535,2411.4,2411.0,4.14764211]
[1750871266784,14.14686358,2411.5,2411.0,4.14764211]
[1750871267318,4.14697606,2411.4,2410.9,4.14772208]
[1750871267520,14.14688466,2411.5,2411.0,4.14764966]
[1750871267921,0.4287,2411.3,2410.7,4.96599205]
[1750871268124,1.788,2411.2,2410.8,4.14792038]
[1750871268421,1.788,2411.2,2410.8,4.14787785]
[1750871268622,1.788,2411.2,2410.9,4.14779355]
[1750871268923,1.9952,2411.2,2410.9,4.14779355]
[1750871269223,1.9952,2411.2,2411.0,4.14764181]
[1750871269529,1.9952,2411.2,2410.9,4.14782861]
[1750871269710,1.9952,2411.2,2411.0,4.14757457]
[1750871269917,1.9952,2411.2,2410.8,4.35515459]
[1750871271324,1.9952,2411.2,2410.8,0.2072]
[1750871271489,0.2072,2411.1,2410.7,4.35537272]
[1750871271687,0.2072,2411.1,2410.9,4.14781878]
[1750871272423,0.2072,2411.1,2411.0,4.14765657]
[1750871273150,1.788,2411.2,2411.1,4.14748455]
[1750871273352,1.9952,2411.2,2411.1,4.14748455]
[1750871278859,10.776,2411.7,2411.6,4.14662464]
[1750871279036,1.788,2411.6,2411.5,4.14676166]
[1750871279247,1.788,2411.6,2411.4,4.14690462]
[1750871280064,1.788,2411.6,2411.3,0.2072]
[1750871280065,1.788,2411.6,2411.5,4.14679659]
[1750871280245,1.788,2411.6,2411.4,4.146882]
[1750871280559,1.788,2411.6,2411.3,0.2072]
[1750871280945,2.2167,2411.6,2411.2,4.14722209]
[1750871281152,2.2167,2411.6,2411.2,4.35442209]
[1750871281463,0.2072,2411.5,2411.2,4.35442209]
[1750871281936,0.2072,2411.5,2411.2,0.2072]
[1750871282134,0.2072,2411.5,2411.4,4.14696856]
[1750871282340,0.2072,2411.5,2411.2,0.2072]
[1750871283031,0.2072,2411.5,2411.2,4.3544211]
[1750871283232,0.2072,2411.5,2411.3,4.14711439]
[1750871283462,0.2072,2411.5,2411.2,0.2072]
[1750871283758,0.2072,2411.5,2411.3,4.14699963]
[1750871283954,4.35405653,2411.5,2411.2,0.2072]
[1750871284260,0.2072,2411.4,2411.1,4.14743872]
[1750871284864,0.2072,2411.4,2411.2,4.14731254]
[1750871285158,0.2072,2411.4,2411.2,4.14730265]
[1750871286062,0.2072,2411.4,2411.1,4.14739057]
[1750871286259,0.2072,2411.4,2411.0,4.14762767]
[1750871286463,0.2072,2411.4,2410.9,4.35492593]
[1750871286760,0.4287,2411.3,2411.0,4.14762415]
[1750871286966,0.4287,2411.3,2410.4,0.7915]
[1750871287135,4.14811128,2410.8,2410.3,4.14878111]
[1750871287463,4.14811128,2410.8,2409.9,4.45727405]
[1750871287464,4.35580539,2410.5,2410.0,4.94079343]
[1750871287643,0.2072,2410.3,2410.1,4.14918263]
[1750871287838,1.788,2410.2,2410.1,4.14918263]
[1750871288232,1.31015939,2410.2,2410.1,4.14918263]
[1750871290264,1.73885939,2410.2,2409.9,0.2072]
[1750871290564,0.2072,2409.9,2409.7,0.46886453]
[1750871290869,0.6359,2409.8,2409.7,4.6187587]
[1750871291443,0.6359,2409.8,2409.7,4.14989417]
[1750871291854,0.6359,2409.8,2409.5,0.2072]
[1750871292040,1.788,2409.7,2409.3,5.83888963]
[1750871292246,0.2072,2409.6,2409.5,4.15022776]
[1750871293634,1.788,2409.7,2409.6,4.1500664]
[1750871295742,1.788,2409.7,2409.4,4.15034635]
[1750871295947,1.788,2409.7,2409.6,4.1500664]
[1750871296855,1.788,2409.7,2409.5,4.15016711]
[1750871297664,1.788,2409.7,2409.3,5.83893743]
[1750871297665,0.6359,2409.6,2409.3,5.83893743]
[1750871297869,4.15034321,2409.5,2408.8,0.8049]
[1750871298089,4.57921314,2409.4,2408.8,4.15133632]
[1750871298385,0.2072,2409.1,2408.9,4.15125835]
[1750871298587,1.786,2409.0,2408.8,4.15136604]
[1750871298886,1.786,2409.0,2408.9,4.15127236]
[1750871299208,0.6359,2408.9,2408.7,4.15153625]
[1750871299366,6.50475996,2408.9,2408.3,4.15219919]
[1750871299571,0.2072,2408.4,2408.3,4.15214883]
[1750871299766,1.9932,2408.4,2408.0,0.2072]
[1750871300296,1.9932,2408.4,2407.9,0.7943]
[1750871300297,1.786,2408.4,2408.1,4.15255927]
[1750871300501,0.2072,2408.2,2408.1,4.15255927]
[1750871300787,0.2072,2408.2,2408.1,4.15265146]
[1750871300988,1.787,2408.2,2408.0,0.2072]
[1750871301194,1.787,2408.2,2407.7,0.7943]
[1750871301385,1.787,2408.2,2407.9,4.15285339]
[1750871301590,1.787,2408.2,2408.0,4.15278623]
[1750871301763,1.787,2408.2,2408.1,4.15265146]
[1750871302457,6.865,2408.6,2408.5,4.1519618]
[1750871302664,1.787,2408.6,2408.2,0.7926]
[1750871302895,0.4287,2408.8,2408.4,4.15196395]
[1750871303107,10.782,2409.3,2408.5,4.1519618]
[1750871303108,1.787,2408.7,2408.5,4.1519618]
[1750871303313,10.0,2408.9,2408.8,4.1514447]
[1750871303611,11.787,2408.9,2408.8,4.1514447]
[1750871303809,17.2947,2409.2,2409.0,4.15102512]
[1750871304033,1.787,2409.1,2409.0,4.15110004]
[1750871304181,1.787,2409.1,2408.8,4.15128791]
[1750871304182,1.787,2409.1,2408.6,0.7505]
[1750871304382,10.0,2409.0,2408.7,4.15151208]
[1750871304926,10.0,2409.0,2408.8,4.15135868]
[1750871305085,10.0,2409.0,2408.8,4.15131333]
[1750871305707,10.0,2409.0,2408.9,4.15127236]
[1750871306013,11.787,2409.1,2409.0,4.15110004]
[1750871306914,1.787,2409.1,2409.0,4.15102464]
[1750871307629,10.782,2409.3,2409.2,4.15075543]
[1750871307932,22.569,2409.3,2409.2,4.15075543]
[1750871308084,12.569,2409.3,2409.2,4.15075543]
[1750871308403,0.4287,2409.7,2409.6,4.1500664]
[1750871308602,10.0,2409.8,2409.7,4.14988384]
[1750871308782,11.787,2409.8,2409.7,4.14988384]
[1750871308980,11.787,2409.8,2409.6,4.1499796]
[1750871309218,11.787,2409.8,2409.3,4.15058315]
[1750871309526,11.787,2409.8,2409.6,4.14994284]
[1750871309701,1.787,2409.8,2409.7,4.14989417]
[1750871310219,1.787,2409.8,2409.5,4.15014957]
[1750871310398,1.787,2409.8,2409.7,4.14989417]
[1750871311817,0.2072,2409.9,2409.7,4.14989417]
[1750871312153,0.4287,2410.1,2410.0,4.14937759]
[1750871312154,0.2072,2410.1,2410.0,4.14937759]
[1750871312357,28.0787,2410.3,2410.2,4.14903327]
[1750871312556,29.8657,2410.3,2410.2,4.14903327]
[1750871312852,29.437,2410.3,2410.2,4.14903327]
[1750871313412,0.2072,2410.2,2409.9,4.14948009]
[1750871313613,0.2072,2410.2,2410.0,4.14928379]
[1750871314051,0.2072,2410.2,2410.0,4.14920604]
[1750871314215,0.2072,2410.2,2410.1,4.14920542]
[1750871314927,0.2072,2410.2,2409.8,1.03719386]
[1750871315143,0.2072,2410.2,2410.0,4.14928167]
[1750871315317,0.2072,2410.2,2410.1,4.14920542]
[1750871316244,0.2072,2410.2,2410.0,4.14928268]
[1750871317239,0.6359,2410.1,2409.4,0.8087]
[1750871317444,6.853,2410.0,2409.8,4.14967328]
[1750871317739,0.2072,2409.9,2409.8,4.14967328]
[1750871317941,0.2072,2409.9,2409.6,4.14989534]
[1750871318147,1.787,2409.8,2409.7,4.14987849]
[1750871322047,7.0592,2410.0,2409.9,4.14954977]
[1750871322241,8.8462,2410.0,2409.9,4.14954977]
[1750871322543,0.2072,2410.0,2409.9,4.14954977]
[1750871322743,1.9942,2410.0,2409.9,4.14954977]
[1750871322942,1.787,2410.0,2409.9,5.14684827]
[1750871323328,1.787,2410.0,2409.9,4.14954977]
[1750871326140,1.9942,2410.0,2409.9,4.14954977]
[1750871326664,1.9942,2410.0,2409.8,4.14964091]
[1750871327364,1.9942,2410.0,2409.8,4.14967011]
[1750871327569,1.9942,2410.0,2409.7,4.14984643]
[1750871327864,1.9942,2410.0,2409.8,4.14960475]
[1750871328464,1.9942,2410.0,2409.9,4.14954977]
[1750871329128,1.9942,2410.0,2409.8,4.14967131]
[1750871330123,1.9942,2410.0,2409.9,4.14954977]
[1750871332155,1.9942,2410.0,2409.8,4.14962839]
[1750871333355,1.9942,2410.0,2409.9,4.14954977]
[1750871334461,16.837,2410.2,2410.1,4.14920542]
[1750871334646,18.8452,2410.2,2410.0,4.14928328]
[1750871334842,18.8452,2410.2,2410.1,4.14920542]
[1750871336170,18.8452,2410.2,2410.0,4.14928605]
[1750871336336,18.8452,2410.2,2409.9,4.14948567]
[1750871337665,18.8452,2410.2,2410.0,4.14928746]
[1750871338376,0.4287,2410.1,2409.5,0.7699]
[1750871338675,0.2072,2410.0,2409.9,4.14954977]
[1750871340370,0.2072,2410.0,2409.9,4.92104977]
[1750871340547,7.0452,2410.2,2410.0,4.14928443]
[1750871340754,0.2072,2410.2,2410.1,4.14920542]
[1750871340941,10.787,2410.3,2410.2,4.14903327]
[1750871341282,10.787,2410.3,2410.2,4.92833327]
[1750871341577,1.801,2410.6,2410.5,4.9278169]
[1750871341791,0.2072,2410.9,2410.8,4.14800066]
[1750871342070,2.0082,2410.9,2410.8,4.14800066]
[1750871342373,10.784,2411.2,2410.8,4.14800066]
[1750871342374,0.2072,2411.1,2411.0,4.91235657]
[1750871342574,10.784,2411.2,2411.1,4.14748455]
[1750871342739,1.8,2411.5,2411.1,4.14748455]
[1750871342939,1.8,2411.5,2411.4,4.14696856]
[1750871343154,1.8,2411.5,2411.3,0.2072]
[1750871343581,1.8,2411.5,2411.4,4.14696856]
[1750871344317,2.0072,2411.5,2411.4,4.14696856]
[1750871344671,2.0072,2411.5,2411.0,0.9719]
[1750871344672,2.0072,2411.5,2411.3,4.14709055]
[1750871344869,6.854,2411.4,2410.7,0.7788]
[1750871345069,0.2072,2411.2,2410.8,4.35510094]
[1750871345271,0.2072,2411.2,2410.8,0.2072]
[1750871345585,0.2072,2411.2,2410.8,4.35508896]
[1750871345785,0.2072,2411.2,2410.9,4.14774155]
[1750871346098,0.2072,2411.2,2410.9,4.14782861]
[1750871346394,0.2072,2411.2,2410.9,4.14773083]
[1750871346780,0.2072,2411.2,2411.0,4.1476363]
[1750871346974,0.2072,2411.2,2410.9,4.14774717]
[1750871347179,4.35452504,2411.2,2410.8,0.2072]
[1750871347405,7.2827,2411.1,2410.5,0.8301]
[1750871347576,4.14829464,2410.7,2410.2,4.90760392]
[1750871347779,0.2072,2410.7,2410.3,4.35602881]
[1750871348111,4.35543308,2410.7,2410.3,0.2072]
[1750871348316,0.2072,2410.7,2410.3,0.2072]
[1750871348515,4.35545754,2410.7,2410.3,0.2072]
[1750871348819,4.14860307,2410.5,2410.0,4.93067183]
[1750871349035,6.15595815,2410.4,2410.0,0.2072]
[1750871349335,8.8652,2410.4,2410.0,0.2072]
[1750871349490,0.2072,2410.4,2410.3,4.14886113]
[1750871349684,1.8,2410.5,2410.3,4.14886113]
[1750871349914,1.8,2410.5,2410.2,4.35614132]
[1750871350217,1.8,2410.5,2410.2,5.20668765]
[1750871350529,1.8,2410.5,2410.2,1.05774633]
[1750871350758,1.8,2410.5,2410.2,5.2066095]
[1750871351039,1.8,2410.5,2410.3,4.14878213]
[1750871351234,1.8,2410.5,2410.2,5.20668563]
[1750871351532,1.8,2410.5,2410.2,1.05774633]
[1750871351736,1.8,2410.5,2410.3,4.14886113]
[1750871353242,0.2072,2410.7,2410.5,4.14838104]
[1750871353438,1.8,2410.7,2410.6,4.14834481]
[1750871354541,1.8,2410.8,2410.7,4.1481554]
[1750871354830,1.8,2410.8,2410.5,4.1485169]
[1750871354831,0.2072,2410.9,2410.6,4.14827467]
[1750871355141,1.8,2410.8,2410.7,4.14817272]
[1750871355308,1.8,2410.8,2410.6,4.14825104]
[1750871355704,1.8,2410.8,2410.7,4.14817272]
[1750871356322,0.2072,2410.9,2410.6,4.14824989]
[1750871356634,1.8,2410.8,2410.6,4.14824989]
[1750871356855,1.8,2410.8,2410.7,4.14817272]
[1750871357442,1.8,2410.8,2410.7,5.76292116]
[1750871357949,4.14775311,2411.0,2410.7,1.61474844]
[1750871358155,15.13577365,2411.1,2410.7,0.7851]
[1750871358360,1.803,2410.9,2410.7,0.7851]
[1750871358862,15.13577365,2411.1,2410.7,0.7851]